{"text_format":"1","workbook":"xlsx","n_sheets":2,"sheets":["INDIVIDUAL REQUESTS","LOOKUP"],"not_rendered":{"charts":0,"images":0,"macros":1,"external_links":0,"defined_names":7,"comments":0,"pivot_tables":0},"unopened":[],"bounds":{"document_bytes":16777216,"sheet_cells":100000,"rows_first":2000,"rows_last":500,"rows_between":2000,"halvings":0,"cell_chars":16384,"cell_head_chars":4096},"cells_cut":0,"cells_raw":0,"read":"whole","date_system":"1900"}

{"sheet":"INDIVIDUAL REQUESTS","index":0,"n_rows":56,"n_cols":15,"rows_kept":56,"cut":false,"hidden":false,"merged":[[12,0,13,0],[0,0,0,7],[2,8,2,12],[3,8,3,12],[12,3,12,4],[12,9,12,13],[2,3,2,5],[4,8,4,12],[5,8,5,12],[0,9,0,13],[9,11,9,12],[3,3,3,5],[9,1,9,3],[8,1,8,3],[11,0,11,13],[4,3,4,5],[8,5,9,7],[13,9,13,10],[13,11,13,13],[14,1,14,8]]}
["MSU COURSE EVALUATION REQUEST FORM",null,null,null,null,null,null,null,"Semester:","Spring 2013"]
[]
[null,null,"College",null,null,null,null,"Contact Name"]
[null,null,"Department",null,null,null,null,"Contact Phone"]
[null,null,"Department Head",null,null,null,null,"Contact Email"]
[null,null,null,null,null,null,null,"Email Address for recipient of reports"]
[]
["Variables apply to ALL courses on form!  Use a separate form for additional requests.",null,null,null,null,null,null,null,"Return Request Form to:",null,null,"TA's:"]
[null,"Select Form",null,null,null,{"$f":"IF(Control=1,\"PAPER\",\"ONLINE\")","v":"PAPER"},null,null,"evals@montana.edu",null,null,null,null,"Last Regular Class Day:"]
[null,"KNAPP",null,null,null,null,null,null,"Use a separate line for each section.",null,null,"2013-04-26",null,null," "]
[]
[{"$f":"IF(LOOKUP!L4>0,\"EARLY       EARLY       EARLY       EARLY       EARLY       EARLY       EARLY       EARLY\",\"END OF TERM       END OF TERM       END OF TERM       END OF TERM\")","v":"END OF TERM       END OF TERM       END OF TERM       END OF TERM"}]
[null,"COURSE","COURSE","INSTRUCTOR NAME",null,"COURSE","COURSE","SECTION","COURSE","Office Use Only"]
[null,"COLLEGE","TYPE","Last","First","RUBRIC","NUMBER","NUMBER","TITLE","Cld for P\\U"]
[null,"Sort White Area Below in Alphabetical Order by Instructor Last Name before Submitting Form",null,null,null,null,null,null,null,"ENRL","GEN","PRT","PKT","RPT"]
[1]
[{"$f":"+A16+1","v":2}]
[{"$f":"+A17+1","v":3}]
[4]
[5]
[6]
[7]
[8]
[9]
[10]
[11]
[12]
[13]
[14]
[15]
[16]
[17]
[18]
[19]
[20]
[21]
[22]
[23]
[24]
[25]
[26]
[27]
[28]
[29]
[30]
[31]
[32]
[33]
[34]
[35]
[36]
[37]
[38]
[39]
[40]
["**Add numbered lines as necessary."]

{"sheet":"LOOKUP","index":1,"n_rows":21,"n_cols":13,"rows_kept":21,"cut":false,"hidden":false,"merged":[]}
["TYPE","COLLEGE","CONTROL",null,"AllNone",null,null,null,"Available Forms Dropdown List",null,null,"EARLY DATES"]
["Lecture","AA",1,null,"ALL",null,null,null,"KNAPP",null,null,"2013-04-26","End of Semester"]
["Lab","AG",null,null,"NONE",null,null,null,"CHBE",null,null,{"$f":"+'INDIVIDUAL REQUESTS'!L10","v":"2013-04-26"},"Requested End Date"]
["Recitation","BU",null,null,null,null,null,null,"Ecology Lab",null,null,{"$f":"+L2-L3","v":0},"Days prior to end of Semester"]
["Seminar","CT",null,null,null,null,null,null,"English"]
["Ind Study","ED",null,null,null,null,null,null,"Extended University"]
["Internship","EN",null,null,null,null,null,null,"Gallatin College"]
["Studio","EX",null,null,null,null,null,null,"Great Falls"]
["Practicum","GC",null,null,null,null,null,null,"Havre"]
["Online/Hybrid","GR",null,null,null,null,null,null,"Honors 202 End of Term"]
[null,"LIBR",null,null,null,null,null,null,"Honors 202 Midterm"]
[null,"LS",null,null,null,null,null,null,"Honors Gen End of Term"]
[null,"NU",null,null,null,null,null,null,"Honors Gen Midterm"]
[null,"RG",null,null,null,null,null,null,"Physics Faculty"]
[null,"UC",null,null,null,null,null,null,"Physics Lab"]
[null,"GF-AS"]
[null,"GF-BT"]
[null,"GF-ES"]
[null,"GF-EX"]
[null,"GF-HS"]
[null,"HV"]